Cogmind - Beta 14 @@@ ROGUE MODE // 2024.11.15 @ 05:40:58 Player: Fangrelle Result: Destroyed by S-10 Pest with Light Assault Rifle Performance ------------- Evolutions (0) 0 Regions Visited (1) 200 Robots Destroyed (13) 65 Value Destroyed (251) 251 Prototype IDs (0) 0 Alien Tech Used (0) 0 Bonus (0) 0 TOTAL SCORE: 516 Bonus ------- None Cogmind --------- Core Integrity 0/250 Matter 300/300 Energy 120/125 System Corruption 1% Temperature Cool (0) Movement Rolling (95) Ox1 Location -10/Materials Parts ------- > --- POWER (1) -------- Light Ion Engine > --- PROPULSION (2) --- Wheel Wheel > --- UTILITY (2) ------ Large Storage Unit Seismic Detector > --- WEAPON (2) ------- Mace Mace > --- INVENTORY (15) --- Improved Hover Unit Improved Hover Unit Improved Hover Unit Improved Hover Unit Small Storage Unit Huge Storage Unit EM Pulse Gun Assault Rifle Light Assault Rifle Grenade Launcher Peak State ------------ > --- POWER ------------ Light Ion Engine > --- PROPULSION ------- Light Treads Light Treads > --- UTILITY ---------- Small Storage Unit Medium Storage Unit > --- WEAPON ----------- Mace Mace > --- INVENTORY -------- Improved Hover Unit Improved Hover Unit Improved Hover Unit Improved Hover Unit EM Pulse Gun Assault Rifle Light Assault Rifle Grenade Launcher [Rating: 10] Favorites ----------- Power Light Ion Engine Engine Light Ion Engine Propulsion Light Treads Treads Light Treads Leg Aluminum Leg Wheel Wheel Hover Unit Improved Hover Unit Utility Small Storage Unit Device Seismic Detector Storage Small Storage Unit Weapon Mace Ballistic Gun Assault Rifle Impact Weapon Mace Build | -11 -10 ------- Run | Yrd Mat Slots Evolved . | . . Power . | . . Propulsion . | . . Utility . | . . Weapon . | . . Parts Attached 13 | . 13 Power 1 | . 1 Engine 1 | . 1 Core . | . . Reactor . | . . Propulsion 7 | . 7 Treads 3 | . 3 Leg . | . . Wheel 2 | . 2 Hover 2 | . 2 Flight . | . . Utility 3 | . 3 Device 1 | . 1 Storage 2 | . 2 Processor . | . . Hackware . | . . Protection . | . . Artifact . | . . Weapon 2 | . 2 Energy Gun . | . . Energy Cannon . | . . Ballistic Gun . | . . Ballistic Cannon . | . . Launcher . | . . Special Weapon . | . . Impact Weapon 2 | . 2 Slashing Weapon . | . . Piercing Weapon . | . . Special Melee Weapon . | . . Unidentified Prototypes . | . . Parts Lost 3 | . 3 Power 1 | . 1 Propulsion 2 | . 2 Utility . | . . Weapon . | . . Highest Loss Streak 3 | . 3 To Critical Strikes . | . . Average Slot Usage (%) 88 | . 88 Engine 12 | . 12 Treads 14 | . 14 Leg 1 | . 1 Wheel 8 | . 8 Hover 1 | . 1 Storage 21 | . 21 Ballistic Gun 2 | . 2 Impact Weapon 25 | . 25 Peak Build Rating 10 | . 10 Average Rating 8 | . 8 On Entrance 6 | 6 6 Naked Turns . | . . Heaviest Build 28 | 11 28 Greatest Support 40 | 20 40 Greatest Overweight (x) 6 | . 6 Average Overweight (x) . | . . Largest Inventory Capacity 15 | . 15 Average Capacity 10 | . 10 Most Carried 10 | . 10 Average Carried 8 | . 8 Final Capacity 15 | 8 15 Final Carried 10 | 6 10 Class Distribution -------------------- 100% | Mutant Dominant Class ---------------- Mutant | -10/Materials Resources | -11 -10 ----------- Run | Yrd Mat Matter Collected 335 | 195 140 Remotely . | . . Salvage Created 314 | . 314 Parts 13 | . 13 Haulers Intercepted 1 | . 1 Recyclers Shooed . | . . Parts Field Recycled . | . . Retrieved Matter . | . . Parts Self-Destructed . | . . Prevented . | . . Kills | -11 -10 ------- Run | Yrd Mat Combat Hostiles Destroyed 8 | . 8 Melee 5 | . 5 Classes Destroyed 5 | . 5 Worker 1 | . 1 Hauler 1 | . 1 Watcher 3 | . 3 Swarmer 3 | . 3 Grunt 5 | . 5 Best Kill Streak 10 | . 10 Combat Bots Only 8 | . 8 Max Kills in Single Turn 1 | . 1 Gunslinging . | . . Exploded . | . . Melee 1 | . 1 Uniques/NPCs Destroyed . | . . Combat | -11 -10 -------- Run | Yrd Mat Hostile Shots Fired 111 | . 111 Missed 25 | . 25 Damage Taken 843 | . 843 Core 253 | . 253 Absorbed by Shields . | . . Core Remaining (%) 100 | 100 . Volleys Fired . | . . Largest . | . . Hottest . | . . Shots Fired . | . . Gun . | . . Cannon . | . . Launcher . | . . Special . | . . Kinetic . | . . Thermal . | . . Explosive . | . . Electromagnetic . | . . Robot Hit Streak . | . . Robot Miss Streak . | . . Penetration Max . | . . Secondary Targets . | . . Shots Hit Robots 26 | . 26 Core Hits 4 | . 4 Critical Kills 2 | . 2 Critical Parts Destroyed 2 | . 2 Critical Strikes 4 | . 4 Smash 4 | . 4 Melee Attacks 37 | . 37 Impact 37 | . 37 Slashing . | . . Piercing . | . . Sneak Attacks 4 | . 4 Combat Hostiles . | . . Follow-up Attacks 5 | . 5 Damage Inflicted 954 | . 954 Guns . | . . Cannons . | . . Explosions . | . . Melee 954 | . 954 Ramming . | . . Kinetic . | . . Thermal . | . . Explosive . | . . Electromagnetic . | . . Impact 954 | . 954 Slashing . | . . Piercing . | . . Highest Corruption 1 | . 1 Average Corruption 1 | . 1 Corruption Purged . | . . Corruption Blocked . | . . Effects 4 | . 4 Message Errors 1 | . 1 Matter Fused 2 | . 2 Heat Flow Errors 1 | . 1 Overload Shots . | . . Overflow Damage 177 | . 177 Projectiles . | . . Explosions . | . . Melee 177 | . 177 Knockbacks 3 | . 3 Impact 3 | . 3 Kinetic . | . . Secondary . | . . Self-Inflicted Damage . | . . Shots . | . . Rammed . | . . Targets Rammed . | . . Kicked . | . . Crushed . | . . Highest Temperature 154 | . 154 Average Temperature 86 | . 86 Received Heat Transfer 258 | . 258 Siege Activations . | . . Robots Corrupted 5 | . 5 Combat Hostiles 3 | . 3 Parts Fried 9 | . 9 Impact Corruptions 11 | . 11 Robots Melted . | . . Combat Hostiles . | . . Parts Melted . | . . Heat Transferred . | . . Parts Sabotaged . | . . Parts Stolen . | . . Parts Stripped . | . . Power Chain Reactions . | . . Alert | -11 -10 ------- Run | Yrd Mat Peak Influence 207 | . 207 Initial . | . . Average 33 | . 33 Maximum Alert Level 1 | . 1 Low Security (%) 96 | . 96 Level 1 3 | . 3 Level 2 . | . . Level 3 . | . . Level 4 . | . . Level 5 . | . . High Security . | . . Max Security . | . . Squads Dispatched 2 | . 2 Investigation 1 | . 1 Extermination . | . . Reinforcement 1 | . 1 Assault . | . . Garrison . | . . Intercept . | . . Searches Triggered . | . . Construction Impeded . | . . Haulers Reinforced . | . . Active Scanning Responses . | . . Cargo Convoy Interrupts . | . . Stealth | -11 -10 --------- Run | Yrd Mat Distress Signals 1 | . 1 Communications Jammed . | . . Distress Signals . | . . Times Spotted 14 | . 14 Peak Tracking Total 5 | . 5 Tactical Retreats . | . . Traps | -11 -10 ------- Run | Yrd Mat Traps Triggered 2 | . 2 Indirectly . | . . Trap Hack Attempts . | . . Triggered . | . . Disarmed . | . . Reprogrammed . | . . Reused . | . . Traps Extracted . | . . Installed . | . . Triggered . | . . Machines | -11 -10 ---------- Run | Yrd Mat Machines Disabled . | . . Max in Single Turn . | . . Machines Repaired . | . . Machines Dismantled . | . . Machines Sabotaged . | . . Overloaded Fab Kills . | . . Hacking | -11 -10 --------- Run | Yrd Mat Machines Accessed 1 | . 1 Terminals 1 | . 1 Fabricators . | . . Repair Stations . | . . Recycling Units . | . . Scanalyzers . | . . Garrison Access . | . . Total Hacks 3 | . 3 Successful 2 | . 2 Failed 1 | . 1 Catastrophic . | . . Database Lockouts . | . . Manual 3 | . 3 Terminals 3 | . 3 Fabricators . | . . Repair Stations . | . . Recycling Units . | . . Scanalyzers . | . . Garrison Access . | . . Terminal Hacks . | . . Fabricator Hacks . | . . Repair Station Hacks . | . . Recycling Unit Hacks . | . . Scanalyzer . | . . Garrison Access Hacks . | . . Unauthorized Hacks 2 | . 2 Terminals 2 | . 2 Assimilate 1 | . 1 Botnet 1 | . 1 Fabricators . | . . Repair Stations . | . . Recycling Units . | . . Scanalyzers . | . . Garrison Access . | . . Data Cores Recovered . | . . Used . | . . Hacking Detections 1 | . 1 Full Trace Events 1 | . 1 Feedback Events 1 | . 1 Corruption 1 | . 1 Feedback Blocked . | . . Robot Schematics Acquired . | . . Robots Built . | . . Authchips . | . . Time . | . . Total Robot Build Rating . | . . Part Schematics Acquired . | . . Parts Built . | . . Authchips . | . . Time . | . . Total Part Build Rating . | . . Parts Repaired . | . . Time . | . . Parts Recycled . | . . Recycled Matter . | . . Retrieved Matter . | . . Retrieved Components . | . . Parts Scanalyzed . | . . Part Schematics Acquired . | . . Parts Damaged . | . . Bothacking | -11 -10 ------------ Run | Yrd Mat Used RIF Installer . | . . Robots Hacked . | . . Non-combat . | . . Combat . | . . Robot Hacks Applied . | . . Relay Couplers Released . | . . Fabnet Peak Effective % . | . . Robots Rewired . | . . Allies Hacked . | . . Hacks Repelled . | . . Allies | -11 -10 -------- Run | Yrd Mat Total Allies . | . . Largest Group . | . . Highest-Rated Group . | . . Highest-Rated Ally . | . . Total Orders . | . . Ally Attacks . | . . Total Damage . | . . Kills . | . . Allies Corrupted . | . . Allies Melted . | . . Intel | -11 -10 ------- Run | Yrd Mat Robot Analysis Total . | . . Derelict Logs Recovered . | . . Drone Launches . | . . Drone Recoveries . | . . Exploration | -11 -10 ------------- Run | Yrd Mat Turns Passed 557 | . 557 Spaces Moved 331 | 1 330 Core 5 | . 5 Treads 146 | . 146 Legs 27 | 1 26 Wheels 141 | . 141 Hover 12 | . 12 Flight . | . . Fastest Speed 80 | 120 80 Average Speed 130 | 120 130 Slowest Speed 350 | 120 350 Overloaded Moves . | . . Propulsion Burnouts . | . . Robots Hopped . | . . Cave-ins Triggered . | . . Exploration Rate (%) 23 | 1 46 Regions Visited 1 Branch Regions . Pre-discovered Areas . | . . Known Exits Taken . | . . Unknown Exits Taken 1 | 1 . Scrap Searched . | . . Spaces Dug . | . . Terrain Destroyed . | . . Melee . | . . Projectile . | . . AOE . | . . Terrain Rammed . | . . Walls Destroyed . | . . Machines Disabled . | . . Actions | -11 -10 --------- Run | Yrd Mat Total 404 | . 404 Wait 14 | . 14 Move 330 | . 330 Hop . | . . Pick Up 6 | . 6 Fast Attach 8 | . 8 Attach 4 | . 4 Detach 4 | . 4 Swap 1 | . 1 Drop 6 | . 6 Fire . | . . Melee 31 | . 31 Ram . | . . Kick . | . . Crush . | . . Escape Stasis . | . . Rewire . | . . Trap . | . . Miscellaneous . | . . Route ------- -11/Scrapyard -10/Materials (discovered 1 exit: [*Mat]) History --------- Turn | Location | Event 1 | -11/Scrapyard | Discovered new exit (range 0) 1 | -11/Scrapyard | Entered Materials 147 | -10/Materials | Discovered new exit (range 9) 301 | -10/Materials | Build established: Mutant 350 | -10/Materials | Core integrity fell below 50% 369 | -10/Materials | Lost 3 parts (1p2n) 401 | -10/Materials | Destroyed 8 combat bots 548 | -10/Materials | Core integrity fell below 20% 558 | -10/Materials | Destroyed by S-10 Pest with Light Assault Rifle Last Messages --------------- 00411_ K-01 Serf collects debris. 00411_ Acquired 29 matter. 00412_ K-01 Serf collects debris. 00425_ 1FN=BWSG:&GS2AWBVB>GD 00426_ Dropped Med. Storage Unit. 00440_ Sneak attack on A-02 Transporter. 00440_ Mace follow-up attack on A-02 Transporter. 00450_ Destroyed Transport Network Coupler. 00450_ A-02 Transporter system corrupted by crushing effect. 00451_ A-02 Transporter system terminally corrupted. 00451_ Lgt. Treads fried. 00456_ System corrupted: Matter fused (-10). 00461_ R-06 Scavenger collects Corrupted Sml. Laser. 00479_ Acquired Huge Storage Unit. 00504_ Acquired 17 matter. 00511_ Acquired 3 matter. 00528_ Acquired Seismic Detector. 00540_ S-10 Pest destroyed. 00540_ K-01 Serf collects debris. 00554_ Acquired 10 matter. Map ----- +----------------------------------------------------+ | ?????????????????????????????????????????????????? | | ?????????????????????????????????????????????????? | | ?????????????????????????????????????????????????? | | ?????????????????????????????????????????????????? | | ?????????????????????????????????????????????????? | | ?????????????????????????????????????????????????? | | ?????????????????????????????????????????????????? | | ???????????????????? #?##????????????????????????? | | ???????????????????# T =%??????????????????????? | | ???????????????????# [ ????????????????????? | | ???????????????????# ????????????????????? | | ???????????????##??# ???????????????????? | | ???????????????? ?# #???????????????????? | | ?????????????????=?# #???????????????????? | | ????????????????? # #???????????????????? | | ?????????????????? # " #???????????????????? | | ???????????????????/ "" #??###########??????? | | ???????????????????# "" #??# #??????? | | ???????????????????# """ #??# """ == #??????? | | ???????????????????# "" u#??# """ =! #??????? | | ???????????????????# """ #??# """ #??????? | | ???????????????????# """ #??# #??????? | | ????#??????????????# """ #??# = #??????? | | ????# ????????????# " #??# #??????? | | ???## ########### %#??# ] #??????? | | ???# s@ ###########+######### | | ???? r u%%! | | ????? """ s % m | | ??????? "T" % | | ???? ###+######+######## ############## | | ???# #! # ## #????????????? | | ???# # """ # ## #####????????? | | ???# """ # """ # ## ########## | | ???# """ ?+ """ #]] ## | | ???# """ ?# #]= ## T | | ???? < ?# """ #]== ## | | ????? #?#= """ # ## ####### | | ??????# """ #?# """ # """ ########?????# | | ??????# """ #?# # "R #????????????# | | ??????# """ #?########## """ #?????######## | | ??????# #####??????# #?????# | | ??????# ## ###################### | | ??????# != * | | ??????# ## ###+##+##+##+################## | | ??????# ### ! # #????????????? | | ??????#########?# # #????????????? | | ????????????????# ! # #????????????? | | ????????????????# # #????????????? | | ????????????????#####################????????????? | | | +----------------------------------------------------+ Best States ------------- Heat Dissipation 25 Energy Generation 10 Energy Capacity 125 Matter Stores 300 Matter Capacity 300 Sight Range 16 Terrain Scan Density 10 Evasion (%) 45 Recoil Reduction 2 Item Schematics ----------------- None Robot Schematics ------------------ None Fabricated ------------ Nothing Alien Tech Used ----------------- None Achievements -------------- None Challenges ------------ None Game ------ Seed PitchforkControlCanceller Manual? 0 Play Time 00:04:22 Cumulative 78.3 hours Start 2024.11.15 @ 05:37:14 End 2024.11.15 @ 05:40:58 Sessions 1 Manual Loads 0 Difficulty Rogue Special Mode None Game No. 136 Rogue 136 Adventurer 0 Explorer 0 Win Type - Total 0 Types 0/0/0/0/0/0/0/0/0 Lore% 41 Gallery% 35 Achievement% 34 Wizard Run 0 Options --------- Layout 0 ASCII 0 Keyboard 0 Movement Mouse Keybinds 0 Fullscreen 1 Font 24/Smallcaps Map View 91x25 Zoom Use 80% Tactical HUD 1 Map Filters NONE Filters NONE Steam 1 RUN: add72fdd-2d1a-40cd-9952-1d27ee02c9f7